[Event "Latvijas 2022. gada jauniešu čempionāta fināls"]
[Site "Riga, Latvia"]
[Date "2022.06.14"]
[Round "4.8"]
[White "Krasilnikova, Marija"]
[Black "Vasiljeva, Sofja"]
[Result "0-1"]
[TimeControl "3600+30"]
[WhiteElo "1300"]
[BlackElo "1676"]

1. e4 {[%clk 01:00:58]} e5 {[%clk 01:00:59]} {[%emt 00:00:02]} 2. Nf3 {[%clk
01:01:21]} {[%emt 00:00:06]} Nc6 {[%clk 01:01:25]} {[%emt 00:00:04]} 3. Bb5
{[%clk 01:01:48]} {[%emt 00:00:04]} Nf6 {[%clk 01:01:52]} {[%emt 00:00:03]} 4.
O-O {[%clk 01:02:14]} {[%emt 00:00:04]} Nxe4 {[%clk 01:02:19]} {[%emt
00:00:03]} 5. Re1 {[%clk 01:02:36]} {[%emt 00:00:07]} Nd6 {[%clk 01:02:46]}
{[%emt 00:00:04]} 6. Nxe5 {[%clk 01:03:00]} {[%emt 00:00:06]} Nxe5 {[%clk
01:02:44]} {[%emt 00:00:33]} 7. Rxe5+ {[%clk 01:03:24]} {[%emt 00:00:05]} Be7
{[%clk 01:03:08]} {[%emt 00:00:05]} 8. Bf1 {[%clk 01:03:49]} {[%emt 00:00:05]}
O-O {[%clk 01:03:32]} {[%emt 00:00:06]} 9. d4 {[%clk 01:04:16]} {[%emt
00:00:04]} Bf6 {[%clk 01:03:54]} {[%emt 00:00:09]} 10. Re1 {[%clk 01:04:35]}
{[%emt 00:00:10]} Nf5 {[%clk 01:04:17]} {[%emt 00:00:07]} 11. d5 {[%clk
01:04:45]} {[%emt 00:00:20]} Re8 {[%clk 01:03:24]} {[%emt 00:01:23]} 12. c3
{[%clk 01:03:32]} {[%emt 00:01:43]} d6 {[%clk 01:00:42]} {[%emt 00:03:12]} 13.
Nd2 {[%clk 00:53:34]} {[%emt 00:10:27]} Rxe1 {[%clk 00:57:39]} {[%emt
00:03:34]} 14. Qxe1 {[%clk 00:53:58]} {[%emt 00:00:05]} Ne7 {[%clk 00:57:18]}
{[%emt 00:00:50]} 15. Bc4 {[%clk 00:45:42]} {[%emt 00:08:46]} Ng6 {[%clk
00:56:23]} {[%emt 00:01:26]} 16. Ne4 {[%clk 00:41:39]} {[%emt 00:04:33]} Be7
{[%clk 00:54:39]} {[%emt 00:02:14]} 17. Qd1 {[%clk 00:32:59]} {[%emt 00:09:10]}
a6 {[%clk 00:51:10]} {[%emt 00:03:59]} 18. a4 {[%clk 00:32:33]} {[%emt
00:00:56]} Bd7 {[%clk 00:48:49]} {[%emt 00:02:51]} 19. a5 {[%clk 00:31:05]}
{[%emt 00:01:57]} Bf8 {[%clk 00:48:16]} {[%emt 00:01:04]} 20. f3 {[%clk
00:28:02]} {[%emt 00:03:33]} Qe7 {[%clk 00:45:13]} {[%emt 00:03:33]} 21. Bf1
{[%clk 00:21:32]} {[%emt 00:07:00]} Re8 {[%clk 00:41:45]} {[%emt 00:03:58]} 22.
b3 {[%clk 00:15:53]} {[%emt 00:06:09]} Qe5 {[%clk 00:33:14]} {[%emt 00:09:00]}
23. Qd4 {[%clk 00:10:23]} {[%emt 00:06:01]} Qxd4+ {[%clk 00:31:14]} {[%emt
00:02:31]} 24. cxd4 {[%clk 00:10:48]} {[%emt 00:00:04]} Ne7 {[%clk 00:31:06]}
{[%emt 00:00:39]} 25. Nc3 {[%clk 00:10:37]} {[%emt 00:00:39]} Nf5 {[%clk
00:31:28]} {[%emt 00:00:09]} 26. Ne2 {[%clk 00:04:08]} {[%emt 00:06:59]} Bb5
{[%clk 00:31:42]} {[%emt 00:00:16]} 27. Kf2 {[%clk 00:00:46]} {[%emt 00:03:52]}
Bxe2 {[%clk 00:31:52]} {[%emt 00:00:20]} 28. Bxe2 {[%clk 00:01:11]} {[%emt
00:00:05]} Nxd4 {[%clk 00:32:20]} {[%emt 00:00:02]} 29. Bc4 {[%clk 00:01:11]}
{[%emt 00:00:29]} Be7 {[%clk 00:31:56]} {[%emt 00:00:55]} 30. Bb2 {[%clk
00:00:41]} {[%emt 00:01:01]} Bf6 {[%clk 00:27:38]} {[%emt 00:04:47]} 31. Rd1
{[%clk 00:00:43]} {[%emt 00:00:27]} Nf5 {[%clk 00:27:36]} {[%emt 00:00:33]} 32.
Bxf6 {[%clk 00:00:42]} {[%emt 00:00:31]} gxf6 {[%clk 00:28:02]} {[%emt
00:00:03]} 33. g4 {[%clk 00:00:35]} {[%emt 00:00:37]} Ne7 {[%clk 00:27:38]}
{[%emt 00:00:55]} 34. Re1 {[%clk 00:00:47]} {[%emt 00:00:18]} Kf8 {[%clk
00:27:53]} {[%emt 00:00:15]} 35. Bd3 {[%clk 00:00:47]} {[%emt 00:00:29]} Ng6
{[%clk 00:26:54]} {[%emt 00:01:29]} 36. Rc1 {[%clk 00:00:52]} {[%emt 00:00:25]}
Re7 {[%clk 00:26:49]} {[%emt 00:00:35]} 37. Be4 {[%clk 00:00:57]} {[%emt
00:00:25]} h6 {[%clk 00:26:58]} {[%emt 00:00:21]} 38. Kg3 {[%clk 00:01:06]}
{[%emt 00:00:22]} Ke8 {[%clk 00:26:10]} {[%emt 00:01:18]} 39. h4 {[%clk
00:01:10]} {[%emt 00:00:25]} Kd8 {[%clk 00:26:29]} {[%emt 00:00:11]} 40. h5
{[%clk 00:01:17]} {[%emt 00:00:23]} Nf8 {[%clk 00:26:15]} {[%emt 00:00:44]} 41.
b4 {[%clk 00:01:29]} {[%emt 00:00:18]} Nd7 {[%clk 00:22:45]} {[%emt 00:03:59]}
42. Kf2 {[%clk 00:00:52]} {[%emt 00:01:08]} Re5 {[%clk 00:22:28]} {[%emt
00:00:47]} 43. Rc4 {[%clk 00:00:33]} {[%emt 00:00:50]} f5 {[%clk 00:21:16]}
{[%emt 00:01:42]} 44. Bxf5 {[%clk 00:00:36]} {[%emt 00:00:26]} Rxd5 {[%clk
00:21:03]} {[%emt 00:00:43]} 45. Be4 {[%clk 00:00:36]} {[%emt 00:00:30]} Rb5
{[%clk 00:20:59]} {[%emt 00:00:34]} 46. Bf5 {[%clk 00:00:36]} {[%emt 00:00:31]}
Ne5 {[%clk 00:15:28]} {[%emt 00:06:01]} 47. Rd4 {[%clk 00:00:44]} {[%emt
00:00:22]} f6 {[%clk 00:09:22]} {[%emt 00:06:36]} 48. Be4 {[%clk 00:00:41]}
{[%emt 00:00:33]} Ke7 {[%clk 00:07:32]} {[%emt 00:02:20]} 49. Kg3 {[%clk
00:00:45]} {[%emt 00:00:25]} c6 {[%clk 00:05:30]} {[%emt 00:02:33]} 50. f4
{[%clk 00:00:52]} {[%emt 00:00:23]} Nf7 {[%clk 00:03:07]} {[%emt 00:02:53]} 51.
Bd3 {[%clk 00:00:36]} {[%emt 00:00:45]} Rd5 {[%clk 00:03:36]} 52. Re4+ {[%clk
00:00:35]} {[%emt 00:00:32]} Kf8 {[%clk 00:02:50]} {[%emt 00:01:16]} 53. Bc4
{[%clk 00:00:46]} {[%emt 00:00:19]} Rd1 {[%clk 00:02:50]} {[%emt 00:00:28]} 54.
Re6 {[%clk 00:00:36]} {[%emt 00:00:42]} Rd4 {[%clk 00:01:41]} {[%emt 00:01:38]}
55. Ba2 {[%clk 00:00:34]} {[%emt 00:00:32]} Rd2 {[%clk 00:01:05]} {[%emt
00:01:06]} 56. Bc4 {[%clk 00:00:36]} {[%emt 00:00:28]} d5 {[%clk 00:01:28]}
{[%emt 00:00:08]} 57. Bf1 {[%clk 00:00:49]} {[%emt 00:00:17]} d4 {[%clk
00:00:42]} {[%emt 00:01:15]} 58. Re2 {[%clk 00:00:33]} {[%emt 00:00:46]} Rd3+
{[%clk 00:00:54]} {[%emt 00:00:18]} 59. Kf2 {[%clk 00:00:52]} {[%emt 00:00:12]}
Rb3 {[%clk 00:00:48]} {[%emt 00:00:35]} 60. Rd2 {[%clk 00:01:02]} {[%emt
00:00:21]} Rxb4 {[%clk 00:01:04]} {[%emt 00:00:14]} 61. Ra2 {[%clk 00:01:06]}
{[%emt 00:00:25]} d3 {[%clk 00:00:42]} {[%emt 00:00:53]} 62. Bxd3 {[%clk
00:01:20]} {[%emt 00:00:16]} Rxf4+ {[%emt 00:00:05]} 63. Kg3 {[%emt 00:00:09]}
Rb4 {[%clk 00:00:47]} {[%emt 00:00:11]} 64. Bf5 {[%clk 00:01:09]} {[%emt
00:00:41]} Ne5 {[%clk 00:00:49]} {[%emt 00:00:27]} 65. Be6 {[%clk 00:01:04]}
{[%emt 00:00:35]} Ke7 {[%clk 00:01:00]} {[%emt 00:00:19]} 66. Bf5 {[%clk
00:01:18]} {[%emt 00:00:16]} c5 {[%clk 00:00:58]} {[%emt 00:00:33]} 67. Rc2
{[%clk 00:01:07]} {[%emt 00:00:40]} c4 {[%clk 00:01:18]} {[%emt 00:00:10]} 68.
Be4 {[%clk 00:00:39]} {[%emt 00:00:57]} Rb3+ {[%clk 00:01:12]} {[%emt
00:00:34]} 69. Kg2 {[%clk 00:00:50]} {[%emt 00:00:22]} c3 {[%clk 00:01:29]}
{[%emt 00:00:13]} 70. Bf5 {[%clk 00:00:31]} {[%emt 00:00:49]} Rb2 {[%clk
00:01:40]} {[%emt 00:00:19]} 71. Kf2 {[%clk 00:00:42]} {[%emt 00:00:18]} Nxg4+
{[%emt 00:01:05]} 72. Kg1 {[%clk 00:00:33]} Rxc2 {[%clk 00:02:06]} {[%emt
00:00:08]} 73. Bxc2 {[%clk 00:00:57]} {[%emt 00:00:07]} Ne3 {[%clk 00:02:35]}
0-1

[Event "Latvijas 2022. gada jauniešu čempionāta fināls"]
[Site "Riga, Latvia"]
[Date "2022.06.14"]
[Round "4.9"]
[White "Zubova, Darja"]
[Black "Apine, Emilija"]
[Result "1-0"]
[TimeControl "3600+30"]
[WhiteElo "1280"]
[BlackElo "1137"]

1. e4 {[%clk 01:00:56]} {[%emt 00:00:02]} c5 {[%clk 01:00:56]} {[%emt
00:00:04]} 2. Nf3 {[%clk 01:01:15]} {[%emt 00:00:11]} d6 {[%clk 01:01:19]}
{[%emt 00:00:08]} 3. Bb5+ {[%clk 01:01:10]} {[%emt 00:00:35]} Bd7 {[%clk
01:01:32]} {[%emt 00:00:17]} 4. Bxd7+ {[%clk 01:01:22]} {[%emt 00:00:17]} Qxd7
{[%clk 01:01:55]} {[%emt 00:00:07]} 5. c4 {[%clk 01:01:33]} {[%emt 00:00:19]}
Nc6 {[%clk 01:01:22]} {[%emt 00:01:03]} 6. d4 {[%clk 01:00:03]} {[%emt
00:02:00]} cxd4 {[%clk 01:01:18]} {[%emt 00:00:35]} 7. Nxd4 {[%clk 01:00:19]}
{[%emt 00:00:13]} Nf6 {[%clk 01:01:24]} {[%emt 00:00:24]} 8. Nc3 {[%clk
01:00:00]} {[%emt 00:00:49]} g6 {[%clk 01:01:26]} {[%emt 00:00:29]} 9. f3
{[%clk 00:59:48]} {[%emt 00:00:41]} Bg7 {[%clk 01:00:41]} {[%emt 00:01:15]} 10.
Be3 {[%clk 00:59:53]} {[%emt 00:00:25]} O-O {[%clk 00:59:52]} {[%emt 00:01:20]}
11. O-O {[%clk 00:59:21]} {[%emt 00:01:00]} Rac8 {[%clk 00:59:39]} {[%emt
00:00:44]} 12. b3 {[%clk 00:58:37]} {[%emt 00:01:14]} a6 {[%clk 00:58:06]}
{[%emt 00:02:03]} 13. Qd3 {[%clk 00:57:38]} {[%emt 00:01:29]} Ne5 {[%clk
00:55:24]} {[%emt 00:03:13]} 14. Qe2 {[%clk 00:56:59]} {[%emt 00:01:07]} Qc7
{[%clk 00:53:17]} {[%emt 00:02:38]} 15. Rac1 {[%clk 00:53:18]} {[%emt
00:04:11]} Nfd7 {[%clk 00:51:08]} {[%emt 00:02:39]} 16. Nd5 {[%clk 00:49:23]}
{[%emt 00:04:26]} Qd8 {[%clk 00:50:18]} {[%emt 00:01:20]} 17. Rfd1 {[%clk
00:46:35]} {[%emt 00:03:17]} e6 {[%clk 00:46:06]} {[%emt 00:04:42]} 18. Nc3
{[%clk 00:44:44]} {[%emt 00:02:21]} Qa5 {[%clk 00:41:55]} {[%emt 00:04:41]} 19.
Na4 {[%clk 00:34:01]} {[%emt 00:11:14]} Nc5 {[%clk 00:36:28]} {[%emt 00:05:57]}
20. Nb2 {[%clk 00:30:37]} {[%emt 00:03:53]} Nc6 {[%clk 00:27:45]} {[%emt
00:09:14]} 21. Nxc6 {[%clk 00:25:16]} {[%emt 00:05:50]} Rxc6 {[%clk 00:27:23]}
{[%emt 00:00:53]} 22. Nd3 {[%clk 00:23:37]} {[%emt 00:02:08]} Nxd3 {[%clk
00:24:51]} {[%emt 00:03:02]} 23. Rxd3 {[%clk 00:23:58]} {[%emt 00:00:09]} Rfc8
{[%clk 00:15:44]} {[%emt 00:09:38]} 24. Rcd1 {[%clk 00:23:37]} {[%emt
00:00:51]} Qb4 {[%clk 00:15:47]} {[%emt 00:00:28]} 25. Qf2 {[%clk 00:21:10]}
{[%emt 00:02:55]} b5 {[%clk 00:13:24]} {[%emt 00:02:53]} 26. c5 {[%clk
00:15:25]} {[%emt 00:06:16]} dxc5 {[%clk 00:13:09]} {[%emt 00:00:46]} 27. Rd8+
{[%clk 00:15:44]} {[%emt 00:00:10]} Bf8 {[%clk 00:13:20]} {[%emt 00:00:19]} 28.
Bh6 {[%clk 00:15:34]} {[%emt 00:00:39]} Qa5 {[%clk 00:07:40]} {[%emt 00:06:10]}
29. Qh4 {[%clk 00:13:08]} {[%emt 00:02:56]} c4 {[%clk 00:05:08]} {[%emt
00:03:02]} 30. Bxf8 {[%clk 00:12:48]} {[%emt 00:00:50]} h5 {[%clk 00:05:14]}
{[%emt 00:00:24]} 31. Qf6 {[%clk 00:12:10]} {[%emt 00:01:06]} 1-0

[Event "Latvijas 2022. gada jauniešu čempionāta fināls"]
[Site "Riga, Latvia"]
[Date "2022.06.14"]
[Round "4.10"]
[White "Jansone, Melanija Luize"]
[Black "Jekabsone, Nellija"]
[Result "1-0"]
[TimeControl "3600+30"]
[WhiteElo "1590"]
[BlackElo "1120"]

1. e4 {[%clk 01:00:58]} c5 {[%clk 01:00:51]} {[%emt 00:00:11]} 2. Nf3 {[%clk
01:01:22]} {[%emt 00:00:04]} d6 {[%clk 01:01:15]} {[%emt 00:00:07]} 3. d4
{[%clk 01:01:46]} {[%emt 00:00:06]} cxd4 {[%clk 01:01:39]} {[%emt 00:00:07]} 4.
Nxd4 {[%clk 01:02:11]} {[%emt 00:00:05]} Nf6 {[%clk 01:01:39]} {[%emt
00:00:29]} 5. Nc3 {[%clk 01:02:31]} {[%emt 00:00:09]} a6 {[%clk 01:01:10]}
{[%emt 00:01:00]} 6. a4 {[%clk 01:02:53]} {[%emt 00:00:08]} e6 {[%clk
01:00:50]} {[%emt 00:00:50]} 7. Be2 {[%clk 01:02:21]} {[%emt 00:01:02]} Be7
{[%clk 00:58:44]} {[%emt 00:02:35]} 8. Be3 {[%clk 01:01:25]} {[%emt 00:01:26]}
Nc6 {[%clk 00:56:53]} {[%emt 00:02:21]} 9. Nb3 {[%clk 00:56:11]} {[%emt
00:05:44]} h6 {[%clk 00:54:45]} {[%emt 00:02:39]} 10. a5 {[%clk 00:55:26]}
{[%emt 00:01:15]} O-O {[%clk 00:50:08]} {[%emt 00:05:07]} 11. O-O {[%clk
00:55:26]} {[%emt 00:00:28]} d5 {[%clk 00:43:01]} {[%emt 00:07:38]} 12. exd5
{[%clk 00:55:36]} {[%emt 00:00:21]} Nxd5 {[%clk 00:42:24]} {[%emt 00:01:07]} 13.
Nxd5 {[%clk 00:55:56]} {[%emt 00:00:10]} exd5 {[%clk 00:42:37]} {[%emt
00:00:17]} 14. c3 {[%clk 00:53:48]} {[%emt 00:02:38]} Bf5 {[%clk 00:37:49]}
{[%emt 00:05:18]} 15. Re1 {[%clk 00:51:25]} {[%emt 00:02:53]} Rc8 {[%clk
00:35:19]} {[%emt 00:03:00]} 16. Bb6 {[%clk 00:50:57]} {[%emt 00:00:58]} Qd7
{[%clk 00:33:22]} {[%emt 00:02:28]} 17. Bf3 {[%clk 00:50:53]} {[%emt 00:00:28]}
Be6 {[%clk 00:30:35]} {[%emt 00:03:20]} 18. Qd3 {[%clk 00:40:31]} {[%emt
00:10:54]} Bd8 {[%clk 00:25:17]} {[%emt 00:05:47]} 19. Nc5 {[%clk 00:39:53]}
{[%emt 00:01:09]} Qe7 {[%clk 00:17:56]} {[%emt 00:07:50]} 20. Nxe6 {[%clk
00:38:13]} {[%emt 00:02:11]} fxe6 {[%clk 00:18:06]} {[%emt 00:00:21]} 21. Bxd5
{[%clk 00:35:17]} {[%emt 00:03:25]} Rf6 {[%clk 00:13:15]} {[%emt 00:05:21]} 22.
Qh3 {[%clk 00:22:43]} {[%emt 00:13:03]} Kf7 {[%clk 00:05:53]} {[%emt 00:07:52]}
23. Rxe6 {[%clk 00:14:08]} {[%emt 00:09:07]} Rxe6 {[%clk 00:04:28]} {[%emt
00:01:55]} 24. Qf5+ {[%clk 00:14:33]} {[%emt 00:00:04]} Ke8 {[%clk 00:03:57]}
{[%emt 00:01:01]} 25. Bxe6 {[%clk 00:14:53]} {[%emt 00:00:10]} 1-0

[Event "Latvijas 2022. gada jauniešu čempionāta fināls"]
[Site "Riga, Latvia"]
[Date "2022.06.14"]
[Round "4.15"]
[White "Kalinin, Oleg"]
[Black "Platonovs, Nikolajs"]
[Result "0-1"]
[TimeControl "3600+30"]
[WhiteElo "1164"]
[BlackElo "1422"]

1. e4 {[%clk 01:00:41]} c5 {[%clk 01:00:57]} 2. c3 {[%clk 01:00:41]} Nf6 {[%clk
01:01:24]} {[%emt 01:04:23]} 3. e5 {[%clk 01:01:35]} Nd5 {[%clk 01:01:48]}
{[%emt 00:00:08]} 4. d4 {[%clk 01:01:58]} cxd4 {[%clk 01:02:11]} {[%emt
00:00:13]} 5. cxd4 {[%clk 01:02:24]} d6 {[%clk 01:02:31]} {[%emt 00:00:14]} 6.
Bc4 {[%clk 01:02:39]} Nb6 {[%clk 01:02:30]} {[%emt 00:00:47]} 7. Bb3 {[%clk
01:03:03]} d5 {[%clk 01:02:30]} {[%emt 00:00:35]} 8. Nc3 {[%clk 01:02:22]} Bf5
{[%clk 01:00:29]} {[%emt 00:03:42]} 9. Bf4 {[%clk 01:00:30]} e6 {[%clk
01:00:37]} {[%emt 00:02:45]} 10. a3 {[%clk 00:58:43]} a6 {[%clk 01:00:04]}
{[%emt 00:03:20]} 11. Nge2 {[%clk 00:58:39]} {[%emt 00:00:33]} Be7 {[%clk
01:00:04]} {[%emt 00:00:30]} 12. O-O {[%clk 00:57:42]} {[%emt 00:01:28]} O-O
{[%clk 00:59:32]} {[%emt 00:01:02]} 13. Ng3 {[%clk 00:52:41]} {[%emt 00:05:31]}
Bg6 {[%clk 00:59:38]} {[%emt 00:00:24]} 14. Qg4 {[%clk 00:50:21]} {[%emt
00:02:46]} Nc6 {[%clk 00:58:41]} {[%emt 00:01:31]} 15. Nce2 {[%clk 00:41:44]}
{[%emt 00:09:06]} Nc4 {[%clk 00:53:20]} {[%emt 00:05:52]} 16. Bxc4 {[%clk
00:37:20]} {[%emt 00:04:55]} dxc4 {[%clk 00:53:20]} {[%emt 00:00:28]} 17. Be3
{[%clk 00:35:46]} {[%emt 00:02:04]} Re8 {[%clk 00:47:25]} {[%emt 00:06:25]} 18.
f4 {[%clk 00:29:19]} {[%emt 00:06:58]} Bf8 {[%clk 00:41:56]} {[%emt 00:05:59]}
19. f5 {[%clk 00:25:00]} {[%emt 00:04:49]} exf5 {[%clk 00:42:03]} {[%emt
00:00:22]} 20. Nxf5 {[%clk 00:24:50]} {[%emt 00:00:41]} Bxf5 {[%clk 00:36:56]}
{[%emt 00:05:34]} 21. Qxf5 {[%clk 00:24:40]} {[%emt 00:00:42]} Qc7 {[%clk
00:34:41]} {[%emt 00:02:46]} 22. Bf4 {[%clk 00:19:03]} {[%emt 00:06:02]} g6
{[%clk 00:33:22]} {[%emt 00:01:53]} 23. Qh3 {[%clk 00:15:13]} {[%emt 00:04:14]}
Qc8 {[%clk 00:32:04]} {[%emt 00:01:53]} 24. Qf3 {[%clk 00:14:30]} {[%emt
00:01:14]} Qd7 {[%clk 00:31:58]} {[%emt 00:00:33]} 25. Qe4 {[%clk 00:07:49]}
{[%emt 00:07:10]} f5 {[%clk 00:32:17]} {[%emt 00:00:15]} 26. Qc2 {[%clk
00:07:59]} {[%emt 00:00:19]} b5 {[%clk 00:32:24]} {[%emt 00:00:25]} 27. Rad1
{[%clk 00:07:55]} {[%emt 00:00:31]} Ne7 {[%clk 00:32:15]} {[%emt 00:00:42]} 28.
d5 {[%clk 00:07:32]} {[%emt 00:00:53]} Nxd5 {[%clk 00:32:07]} {[%emt 00:00:37]}
29. Nc3 {[%clk 00:07:36]} {[%emt 00:00:27]} Qa7+ {[%clk 00:32:32]} {[%emt
00:00:04]} 30. Kh1 {[%clk 00:07:53]} {[%emt 00:00:13]} Nxf4 {[%clk 00:32:42]}
{[%emt 00:00:21]} 31. Rxf4 {[%clk 00:08:13]} {[%emt 00:00:10]} Rxe5 {[%clk
00:32:36]} {[%emt 00:00:35]} 32. Nd5 {[%clk 00:08:05]} {[%emt 00:00:39]} Bg7
{[%clk 00:32:44]} {[%emt 00:00:22]} 33. Nb4 {[%clk 00:05:35]} {[%emt 00:03:00]}
Rae8 {[%clk 00:32:15]} {[%emt 00:00:58]} 34. Nc6 {[%clk 00:04:55]} {[%emt
00:01:11]} Re1+ {[%clk 00:32:22]} {[%emt 00:00:21]} 35. Rf1 {[%clk 00:05:16]}
{[%emt 00:00:10]} Rxf1+ {[%clk 00:32:24]} {[%emt 00:00:27]} 36. Rxf1 {[%clk
00:05:46]} Qc5 {[%clk 00:32:32]} {[%emt 00:00:21]} 37. Na5 {[%clk 00:05:54]}
{[%emt 00:00:25]} Qe5 {[%clk 00:32:10]} {[%emt 00:00:40]} 38. b4 {[%clk
00:05:43]} {[%emt 00:00:53]} Qe2 {[%clk 00:31:11]} {[%emt 00:01:26]} 39. Qb1
{[%clk 00:05:53]} {[%emt 00:00:23]} c3 {[%clk 00:30:51]} {[%emt 00:00:49]} 40.
Qb3+ {[%clk 00:05:20]} {[%emt 00:01:03]} Kh8 {[%clk 00:30:24]} {[%emt
00:00:57]} 41. Qb1 {[%clk 00:03:37]} {[%emt 00:02:13]} c2 {[%clk 00:29:56]}
{[%emt 00:00:58]} 42. Qc1 {[%clk 00:03:57]} {[%emt 00:00:10]} Rd8 {[%clk
00:29:35]} {[%emt 00:00:52]} 43. Nb3 {[%clk 00:02:44]} {[%emt 00:01:43]} Rd1
{[%clk 00:29:46]} {[%emt 00:00:19]} 44. Rg1 {[%clk 00:01:50]} {[%emt 00:01:23]}
Rxc1 {[%clk 00:30:01]} {[%emt 00:00:15]} 45. Nxc1 {[%clk 00:02:15]} {[%emt
00:00:06]} Qd1 {[%clk 00:30:18]} {[%emt 00:00:13]} 46. h3 {[%clk 00:02:38]}
{[%emt 00:00:06]} Bd4 {[%clk 00:30:41]} {[%emt 00:00:07]} 0-1

[Event "Latvijas 2022. gada jauniešu čempionāta fināls"]
[Site "Riga, Latvia"]
[Date "2022.06.14"]
[Round "4.17"]
[White "Aleksejevs, Daniils"]
[Black "Valdats, Reinis"]
[Result "0-1"]
[TimeControl "3600+30"]
[WhiteElo "1197"]
[BlackElo "1488"]

1. e4 {[%clk 01:00:59]} c5 {[%clk 01:00:56]} {[%emt 00:00:04]} 2. Nf3 {[%clk
01:01:24]} {[%emt 00:00:05]} e6 {[%clk 01:01:22]} {[%emt 00:00:04]} 3. d4
{[%clk 01:01:08]} {[%emt 00:00:46]} cxd4 {[%clk 01:01:47]} {[%emt 00:00:06]} 4.
Nxd4 {[%clk 01:01:35]} {[%emt 00:00:03]} Nc6 {[%clk 01:02:11]} {[%emt
00:00:05]} 5. c4 {[%clk 01:00:48]} {[%emt 00:01:18]} Nf6 {[%clk 01:02:25]}
{[%emt 00:00:15]} 6. Nc3 {[%clk 00:59:18]} {[%emt 00:02:01]} Bb4 {[%clk
01:02:23]} {[%emt 00:00:31]} 7. Bg5 {[%clk 00:58:40]} {[%emt 00:01:08]} Qa5
{[%clk 00:56:28]} {[%emt 00:06:25]} 8. Nxc6 {[%clk 00:55:31]} {[%emt 00:03:40]}
Bxc3+ {[%clk 00:55:57]} {[%emt 00:01:00]} 9. bxc3 {[%clk 00:55:12]} {[%emt
00:00:49]} Qxg5 {[%clk 00:55:56]} {[%emt 00:00:31]} 10. Nd4 {[%clk 00:52:59]}
{[%emt 00:02:43]} Nxe4 {[%clk 00:49:59]} {[%emt 00:06:27]} 11. Qc2 {[%clk
00:51:25]} {[%emt 00:02:03]} Nd6 {[%clk 00:40:18]} {[%emt 00:10:13]} 12. Rd1
{[%clk 00:49:55]} {[%emt 00:02:00]} O-O {[%clk 00:34:08]} {[%emt 00:06:40]} 13.
Nf3 {[%clk 00:48:05]} {[%emt 00:02:19]} Qc5 {[%clk 00:33:23]} {[%emt 00:01:15]}
14. Bd3 {[%clk 00:47:09]} {[%emt 00:01:25]} f5 {[%clk 00:32:37]} {[%emt
00:01:17]} 15. Qb3 {[%clk 00:44:53]} {[%emt 00:02:47]} b6 {[%clk 00:29:16]}
{[%emt 00:03:51]} 16. O-O {[%clk 00:40:40]} {[%emt 00:04:37]} Bb7 {[%clk
00:28:05]} {[%emt 00:01:47]} 17. Nd4 {[%clk 00:38:09]} {[%emt 00:03:01]} e5
{[%clk 00:28:03]} {[%emt 00:00:32]} 18. Nc2 {[%clk 00:27:28]} {[%emt 00:11:09]}
Rac8 {[%clk 00:16:08]} {[%emt 00:12:26]} 19. Ne3 {[%clk 00:24:45]} {[%emt
00:03:13]} f4 {[%clk 00:14:42]} {[%emt 00:01:57]} 20. Ng4 {[%clk 00:23:15]}
{[%emt 00:01:59]} h5 {[%clk 00:12:12]} {[%emt 00:03:00]} 21. Nh6+ {[%clk
00:21:26]} {[%emt 00:02:19]} gxh6 {[%clk 00:12:07]} {[%emt 00:00:36]} 22. Qc2
{[%clk 00:18:09]} {[%emt 00:03:47]} e4 {[%clk 00:11:43]} {[%emt 00:00:53]} 23.
Be2 {[%clk 00:18:22]} {[%emt 00:00:17]} Rf5 {[%clk 00:10:21]} {[%emt 00:01:52]}
24. Kh1 {[%clk 00:16:49]} {[%emt 00:02:04]} Rcf8 {[%clk 00:07:31]} {[%emt
00:03:20]} 25. Qd2 {[%clk 00:15:15]} {[%emt 00:01:56]} R8f6 {[%clk 00:05:50]}
{[%emt 00:02:18]} 26. Rb1 {[%clk 00:14:16]} {[%emt 00:01:23]} Rg5 {[%clk
00:04:27]} {[%emt 00:01:59]} 27. h4 {[%clk 00:12:55]} {[%emt 00:01:52]} Rg7
{[%clk 00:02:04]} {[%emt 00:02:53]} 28. Rb5 {[%clk 00:10:18]} {[%emt 00:03:06]}
Nxb5 {[%clk 00:02:15]} {[%emt 00:00:19]} 29. cxb5 {[%clk 00:09:59]} {[%emt
00:00:50]} e3 {[%clk 00:02:24]} {[%emt 00:00:20]} 30. fxe3 {[%clk 00:08:01]}
{[%emt 00:02:28]} Bxg2+ {[%clk 00:02:25]} {[%emt 00:00:29]} 31. Kh2 {[%clk
00:08:19]} {[%emt 00:00:12]} Bxf1 {[%clk 00:02:22]} {[%emt 00:00:33]} 32. Bxf1
{[%clk 00:08:27]} {[%emt 00:00:21]} fxe3 {[%clk 00:02:38]} {[%emt 00:00:15]} 33.
Qe2 {[%clk 00:07:55]} {[%emt 00:01:03]} Rf2+ {[%clk 00:02:30]} {[%emt
00:00:37]} 34. Qxf2 {[%clk 00:06:57]} {[%emt 00:01:28]} exf2 {[%clk 00:02:52]}
{[%emt 00:00:08]} 35. a4 {[%emt 00:00:06]} Qe5+ {[%clk 00:03:04]} {[%emt
00:00:16]} 36. Kh1 {[%clk 00:07:42]} {[%emt 00:00:10]} Rg1# {[%clk 00:03:29]}
{[%emt 00:00:05]} 0-1